bitfinex/quotes_ETHUSD_20240810
["timestamp","ask_amount","ask_price","bid_price","bid_amount"]
[1723308246657,2.3426,2611.1,2610.8,3.0701]
[1723308252175,0.07653481,2611.0,2610.8,1.155]
[1723308252468,0.50993529,2611.0,2610.8,1.155]
[1723308252763,0.07653481,2611.0,2610.6,1.155]
[1723308253871,2.41913481,2611.1,2610.6,3.07024]
[1723308254439,3.75870167,2611.2,2610.8,1.155]
[1723308255079,0.07653481,2611.2,2610.8,1.155]
[1723308255739,2.51343481,2611.4,2611.0,1.155]
[1723308255944,2.4369,2611.4,2611.0,1.155]
[1723308256156,2.4369,2611.4,2611.1,1.91489]
[1723308257842,0.07653481,2611.5,2611.2,1.155]
[1723308258172,1.99106481,2611.6,2611.2,1.155]
[1723308258377,3.16010575,2611.6,2611.2,1.155]
[1723308260519,5.00680276,2611.5,2611.2,1.155]
[1723308260722,3.75800743,2611.5,2611.2,1.155]
[1723308260885,1.32533031,2611.4,2611.2,1.155]
[1723308261084,3.75800743,2611.5,2611.2,1.155]
[1723308262402,3.75800743,2611.5,2611.2,3.06982]
[1723308262597,0.07653481,2611.5,2611.2,1.155]
[1723308263427,3.75796156,2611.6,2611.2,3.56829]
[1723308263586,2.4369,2611.7,2611.2,3.56829]
[1723308263587,6.19486156,2611.7,2611.2,3.56829]
[1723308264219,3.75796156,2611.7,2611.2,3.56829]
[1723308264428,0.07653481,2611.7,2611.4,1.91468]
[1723308264610,3.68114133,2611.8,2611.4,1.91468]
[1723308264808,1.40174636,2611.7,2611.4,1.91468]
[1723308265108,7.44341419,2611.6,2611.2,1.155]
[1723308265309,0.07653481,2611.5,2611.2,1.155]
[1723308266820,0.07653481,2611.5,2611.1,1.91485]
[1723308267048,0.07653481,2611.5,2611.0,1.155]
[1723308267049,1.99115481,2611.5,2611.0,1.155]
[1723308267254,8.10080357,2611.5,2611.0,1.155]
[1723308267401,6.77539906,2611.5,2611.0,1.155]
[1723308267904,6.77539906,2611.5,2611.0,3.06996]
[1723308268122,6.77541175,2611.5,2611.0,3.06996]
[1723308268333,6.77541175,2611.5,2610.8,3.83011]
[1723308268504,6.77541175,2611.5,2610.9,1.155]
[1723308269343,1.3253562,2611.4,2610.9,1.155]
[1723308269500,0.07653481,2611.3,2610.9,3.07004]
[1723308270433,0.07653481,2611.4,2610.9,3.568549]
[1723308270597,0.07653481,2611.4,2610.9,3.07004]
[1723308272532,5.08354114,2611.4,2610.9,3.07004]
[1723308272718,3.75814667,2611.4,2610.9,3.07004]
[1723308272938,3.75820732,2611.4,2610.9,3.07004]
[1723308273828,0.03902942,2611.2,2610.9,3.07004]
[1723308274140,0.03902942,2611.2,2610.9,3.568549]
[1723308281447,2.29052942,2611.2,2610.9,1.155]
[1723308281857,6.04863932,2611.2,2610.9,1.155]
[1723308282054,2.36706423,2611.2,2610.9,1.155]
[1723308282354,2.29052942,2611.2,2610.9,1.155]
[1723308282555,2.29052942,2611.2,2610.9,3.07004]
[1723308284041,2.29052942,2611.2,2610.9,1.155]
[1723308286891,3.16340195,2611.2,2610.6,1.91523]
[1723308287056,3.16340195,2611.2,2610.6,3.07023]
[1723308287057,3.68163299,2611.0,2610.6,3.07023]
[1723308287262,1.9149,2611.1,2610.6,3.07023]
[1723308287466,3.75865371,2611.0,2610.6,1.155]
[1723308287677,1.91516,2610.8,2610.4,1.155]
[1723308287847,0.07653481,2610.7,2610.4,1.155]
[1723308288050,0.07653481,2610.7,2610.2,3.07055]
[1723308288253,2.3913,2610.6,2610.2,1.155]
[1723308288580,0.07653481,2610.5,2610.2,1.155]
[1723308289389,2.46783481,2610.6,2610.3,1.91548]
[1723308290294,2.3913,2610.6,2610.3,1.91548]
[1723308290473,2.3913,2610.6,2610.2,1.91554]
[1723308290652,2.3913,2610.6,2610.3,1.155]
[1723308292789,0.07653481,2610.5,2610.3,1.155]
[1723308303836,2.46783481,2610.6,2610.3,1.155]
[1723308304929,2.3913,2610.6,2610.3,1.155]
[1723308305939,2.46783481,2610.9,2610.5,1.155]
[1723308306138,3.81764168,2610.9,2610.5,1.155]
[1723308307910,3.81764168,2610.9,2610.5,3.07033]
[1723308308655,2.46783481,2610.9,2610.5,1.155]
[1723308310764,0.07653481,2610.9,2610.6,1.91526]
[1723308312935,0.07653481,2610.9,2610.5,1.155]
[1723308314063,1.99159481,2610.9,2610.5,1.155]
[1723308314261,3.04882096,2610.8,2610.5,1.155]
[1723308314568,0.07653481,2610.7,2610.5,1.155]
[1723308315424,2.4214,2610.6,2610.1,1.155]
[1723308315627,0.07653481,2610.5,2610.1,1.155]
[1723308316330,0.07653481,2610.5,2610.1,3.07058]
[1723308317172,3.75939576,2610.5,2610.1,3.07058]
[1723308317399,2.4214,2610.0,2609.4,1.91609]
[1723308317692,0.07653481,2609.9,2609.5,1.155]
[1723308318480,0.07653481,2609.9,2609.6,1.91599]
[1723308318848,0.07653481,2609.9,2609.5,1.155]
[1723308320350,2.4214,2609.8,2609.5,1.155]
[1723308320613,0.07653481,2609.7,2609.5,1.155]
[1723308321052,0.07653481,2609.7,2609.2,1.91625]
[1723308321273,0.07653481,2609.7,2609.0,3.83281]
[1723308321274,2.4214,2609.6,2609.0,3.83281]
[1723308321478,0.07653481,2609.5,2609.1,1.155]
[1723308322892,0.07653481,2609.5,2608.8,11.18309]
[1723308322893,2.62559229,2609.5,2608.8,11.18309]
[1723308323193,2.62559229,2609.5,2608.5,2.4778]
[1723308323194,2.4214,2609.4,2608.9,1.155]
[1723308323352,1.99275481,2609.3,2608.9,1.155]
[1723308323546,1.99284481,2609.2,2608.9,1.155]
[1723308324475,0.07653481,2609.2,2608.9,1.155]
[1723308324816,0.07653481,2609.5,2609.1,3.07131]
[1723308324948,2.4214,2609.6,2609.3,1.155]
[1723308325261,0.07653481,2609.7,2609.5,1.155]
[1723308326087,0.07653481,2609.7,2609.5,3.07106]
[1723308326401,2.4214,2609.8,2609.5,3.07106]
[1723308326889,2.4214,2609.8,2609.5,1.155]
[1723308327091,2.49793481,2609.8,2609.5,1.155]
[1723308327789,2.49793481,2609.8,2609.3,1.91618]
[1723308328378,0.07653481,2609.7,2609.2,1.91627]
[1723308328702,0.07653481,2609.7,2609.2,2.374185]
[1723308328868,0.07653481,2609.7,2609.3,1.9162]
[1723308331079,2.49793481,2609.8,2609.3,1.9162]
[1723308331277,2.49793481,2609.8,2609.4,1.91609]
[1723308331489,0.07653481,2609.8,2609.5,1.91602]
[1723308331803,7.3,2610.2,2609.5,1.91602]
[1723308331804,7.3,2610.2,2609.7,1.91588]
[1723308332367,7.3,2610.2,2609.8,1.91584]
[1723308332594,7.3,2610.2,2609.9,1.91577]
[1723308332807,7.3,2610.2,2609.9,2.298933]
[1723308333009,7.3,2610.2,2609.9,1.91577]
[1723308333503,7.3,2610.2,2609.7,3.83172]
[1723308333669,7.3,2610.2,2609.7,1.91586]
[1723308333871,0.03902942,2610.0,2609.7,1.91586]
[1723308336412,0.03902942,2610.0,2609.9,1.91578]
[1723308337073,0.03902942,2610.0,2609.9,0.191578]
[1723308337308,0.03902942,2610.0,2609.8,1.9158]
[1723308338266,0.03902942,2610.0,2609.6,1.91598]
[1723308338900,0.03902942,2610.0,2609.6,1.91595]
[1723308339813,0.11556423,2610.0,2609.4,1.91609]
[1723308340906,0.11556423,2610.0,2609.6,1.91599]
[1723308342728,0.11556423,2610.0,2609.2,5.1692]
[1723308342729,0.11556423,2610.0,2609.5,1.91607]
[1723308342893,0.74723565,2610.0,2609.5,1.91607]
[1723308344399,2.66294565,2610.0,2609.5,1.91607]
[1723308344724,2.66294565,2610.0,2609.3,3.8324]
[1723308344725,2.3699,2609.8,2609.3,3.8324]
[1723308344882,0.07653481,2609.7,2609.3,3.8324]
[1723308345401,0.07653481,2609.7,2609.4,1.91613]
[1723308345615,2.3699,2609.8,2609.5,1.91604]
[1723308345808,2.3699,2609.8,2609.5,1.91602]
[1723308347538,2.3699,2609.8,2609.4,1.91614]
[1723308347831,2.3699,2609.8,2609.5,1.91604]
[1723308349126,0.07653481,2609.7,2609.3,3.07218]
[1723308354898,0.07653481,2609.7,2609.3,3.07217]
[1723308356395,0.07653481,2609.7,2609.3,1.156]
[1723308356624,0.07653481,2609.7,2609.2,1.91629]
[1723308360498,2.457,2609.6,2609.2,1.91629]
[1723308360796,0.07653481,2609.5,2609.2,1.91629]
[1723308361204,2.53353481,2609.6,2609.3,1.9162]
[1723308362415,2.457,2609.6,2609.3,1.9162]
[1723308363227,0.07653481,2609.5,2609.3,1.9162]
[1723308365623,0.07653481,2609.5,2609.1,2.523542]
[1723308365826,2.457,2609.4,2608.9,1.9165]
[1723308366012,0.07653481,2609.3,2608.9,1.9165]
[1723308366212,2.457,2609.2,2608.8,1.91658]
[1723308366529,0.07653481,2609.1,2608.8,1.91658]
[1723308366725,0.07653481,2609.1,2608.7,1.91662]
[1723308367058,2.457,2609.0,2608.7,1.91662]
[1723308369249,0.07653481,2608.9,2608.7,1.91662]
[1723308371022,0.07653481,2608.9,2608.5,1.91675]
[1723308373654,0.07653481,2608.9,2608.6,1.91668]
[1723308374863,0.07653481,2608.9,2608.5,1.91675]
[1723308375946,2.429,2608.8,2608.5,1.91675]
[1723308376253,0.07653481,2608.7,2608.5,1.91675]
[1723308380136,0.03902942,2608.8,2608.7,1.91666]
[1723308381080,0.03902942,2608.8,2608.5,3.83349]
[1723308381243,0.03902942,2608.8,2608.5,1.91674]
[1723308382243,0.03902942,2608.8,2608.3,1.91691]
[1723308382477,2.429,2608.7,2608.4,1.91683]
[1723308382660,0.07653481,2608.6,2608.4,1.86683]
[1723308383379,2.429,2608.7,2608.5,1.91681]
[1723308388382,2.429,2608.7,2608.6,1.91673]
[1723308388748,2.429,2608.7,2608.5,1.91681]
[1723308391586,2.429,2608.7,2608.5,1.91676]
[1723308392426,0.07653481,2608.6,2608.5,1.91676]
[1723308392723,0.07653481,2608.6,2608.3,3.83381]
[1723308393314,0.07653481,2608.6,2608.4,1.91688]
[1723308393524,0.07653481,2608.6,2608.3,3.8338]
[1723308394101,0.07653481,2608.6,2608.3,1.9169]
[1723308395222,0.44659123,2608.6,2608.3,1.9169]
[1723308395424,2.3852,2608.5,2608.1,4.91703]
[1723308395630,2.3852,2608.5,2608.1,1.91703]
[1723308395790,2.3852,2608.5,2608.0,3.0]
[1723308395791,2.3852,2608.5,2608.3,1.91691]
[1723308396701,0.07653481,2608.4,2607.9,1.91721]
[1723308396915,2.3852,2608.3,2607.9,1.91721]
[1723308397227,0.07653481,2608.2,2607.9,1.91721]
[1723308397923,0.07653481,2608.2,2607.7,1.91735]
[1723308398086,1.59430829,2608.2,2607.7,1.91735]
[1723308399023,1.59430829,2608.2,2607.5,1.91751]
[1723308399024,1.156,2608.0,2607.5,1.91748]
[1723308399227,2.46173481,2607.9,2607.5,1.91748]
[1723308400206,2.46173481,2607.9,2607.5,3.83498]
[1723308400531,3.01521929,2607.9,2607.5,1.91748]
[1723308400741,3.01521929,2607.9,2607.7,1.91735]
[1723308401068,2.3852,2607.9,2607.7,1.91735]
[1723308401516,3.9693273,2608.5,2607.7,3.71079429]
[1723308401722,2.46173481,2608.6,2608.3,1.91695]
[1723308402852,2.46173481,2608.6,2608.1,1.91709]
[1723308402853,2.42422942,2608.8,2608.4,1.156]
[1723308403018,0.03902942,2608.8,2608.7,1.91666]
[1723308403207,0.03902942,2608.8,2608.7,4.1482528]
[1723308403404,0.03902942,2608.8,2608.7,6.0649128]
[1723308403646,0.03902942,2608.8,2608.7,6.14156277]
[1723308403943,0.03902942,2608.8,2608.7,4.1482528]
[1723308405107,0.03902942,2608.8,2608.7,12.16966657]
[1723308405306,0.03902942,2608.8,2608.7,9.16966657]
[1723308405546,0.03902942,2608.8,2608.7,12.16966657]
[1723308411135,9.42e-06,2608.8,2608.7,14.08632657]
[1723308411355,2.4437,2610.1,2609.7,1.91587]
[1723308412716,2.4437,2610.1,2609.5,1.91604]
[1723308412928,2.3656,2609.9,2609.3,1.91617]
[1723308413144,0.07653481,2609.8,2609.4,1.91608]
[1723308413344,0.07653481,2609.8,2609.5,1.91605]
[1723308413552,2.44213481,2609.9,2609.5,1.91605]
[1723308414443,0.07653481,2609.8,2609.5,1.91605]
[1723308414636,0.07653481,2609.8,2609.4,1.91614]
[1723308416351,0.07653481,2609.8,2609.5,1.91607]
[1723308416824,0.07653481,2609.8,2609.4,1.91614]
[1723308418771,0.07653481,2609.8,2609.4,3.83224]
[1723308418971,0.07653481,2609.8,2609.4,2.3184857]
[1723308419735,0.07653481,2609.8,2609.4,0.4023857]
[1723308419946,2.3656,2609.7,2609.3,0.191617]
[1723308420477,2.3656,2609.7,2609.3,1.91622]
[1723308420673,2.3656,2609.7,2609.4,1.91613]
[1723308420881,2.3656,2609.7,2609.4,3.83223]
[1723308421080,2.3656,2609.7,2609.4,1.9161]
[1723308421775,2.3656,2609.7,2609.3,1.91621]
[1723308422084,2.3656,2609.7,2609.4,1.91613]
[1723308422268,2.44213481,2610.0,2609.5,1.91606]
[1723308423485,2.44213481,2610.0,2609.4,1.91613]
[1723308423486,4.35785481,2610.0,2609.4,1.91613]
[1723308423690,4.35785481,2610.0,2609.2,4.69126]
[1723308423691,2.3656,2609.8,2609.2,1.91624]
[1723308423846,2.3656,2609.6,2609.2,1.91624]
[1723308424345,2.3656,2609.6,2609.3,1.91621]
[1723308425346,2.3656,2609.6,2609.2,1.91624]
[1723308425547,2.3656,2609.6,2609.2,3.334504]
[1723308427064,2.3656,2609.6,2609.3,1.91622]
[1723308427377,2.3656,2609.6,2609.2,5.250744]
[1723308427582,2.3656,2609.6,2609.2,3.334504]
[1723308428140,2.3656,2609.6,2609.2,1.91624]
[1723308429476,2.3656,2609.6,2609.2,3.83248]
[1723308429695,2.3656,2609.6,2609.3,1.91617]
[1723308429857,2.3656,2609.6,2609.4,3.83223]
[1723308430055,2.43963481,2609.8,2609.4,1.91609]
[1723308430399,2.43963481,2609.8,2609.4,2.299324]
[1723308430574,2.3631,2609.8,2609.4,2.299324]
[1723308432069,2.3631,2609.8,2609.6,1.91595]
[1723308432377,9.6631,2610.1,2609.7,1.91592]
[1723308432573,9.6631,2610.1,2609.6,1.91595]
[1723308432776,13.34661621,2610.1,2609.6,1.91595]
[1723308433194,13.34661621,2610.1,2609.6,1.91594]
[1723308433397,13.34661621,2610.1,2609.6,3.83189]
[1723308433567,13.34661621,2610.1,2609.7,1.91592]
[1723308433772,6.04661621,2610.1,2609.7,1.91592]
[1723308434087,6.04661621,2610.1,2609.4,0.383234]
[1723308434408,5.00960386,2610.0,2609.7,1.91588]
[1723308436387,5.00960386,2610.0,2609.6,1.91594]
[1723308437063,5.00960386,2610.0,2609.7,1.91588]
[1723308437804,1.32608765,2610.0,2609.8,1.156]
[1723308438102,6.04661621,2610.1,2609.8,1.156]
[1723308438401,5.009586,2610.0,2609.8,1.156]
[1723308438608,5.009586,2610.0,2609.8,3.07184]
[1723308438760,6.04661621,2610.1,2609.8,3.07184]
[1723308439106,6.04661621,2610.1,2610.0,1.156]
[1723308439258,7.37267244,2610.1,2610.0,1.156]
[1723308439463,2.3631,2610.1,2610.0,1.156]
[1723308439777,6.04657394,2610.1,2610.0,1.156]
[1723308439973,7.44915937,2610.1,2609.6,3.83189]
[1723308440177,6.12310875,2610.1,2609.8,1.156]
[1723308443100,2.43963481,2610.1,2609.8,1.156]
[1723308443397,6.12313761,2610.1,2609.8,1.156]
[1723308443705,6.1231544,2610.1,2609.8,3.07181]
[1723308444059,6.1231544,2610.1,2609.8,1.156]
[1723308444265,6.1231544,2610.1,2609.4,2.299334]
[1723308444463,5.00961759,2610.0,2609.8,1.156]
[1723308444700,6.02263764,2610.0,2609.4,1.9161]
[1723308444904,6.02263764,2610.0,2609.3,2.2987]
[1723308444905,4.20759,2609.9,2609.5,1.156]
[1723308445074,4.28422481,2609.8,2609.5,1.156]
[1723308445275,0.07653481,2609.7,2609.5,1.156]
[1723308446117,0.07653481,2609.7,2608.8,1.91654]
[1723308446118,2.2918,2609.6,2608.8,1.91654]
[1723308446282,5.08727992,2609.5,2609.1,1.156]
[1723308446463,2.2918,2609.4,2609.1,1.156]
[1723308446670,0.07653481,2609.3,2609.1,1.156]
[1723308450408,0.07653481,2609.3,2608.8,1.91654]
[1723308450409,2.4325,2609.0,2608.8,1.156]
[1723308450614,2.4325,2609.0,2608.6,1.156]
[1723308450615,0.51142581,2608.9,2608.6,1.156]
[1723308450905,0.07653481,2608.9,2608.6,1.156]
[1723308451068,1.99304481,2608.9,2608.6,1.156]
[1723308451770,1.99304481,2608.9,2608.8,1.156]
[1723308452307,0.07653481,2608.9,2608.8,1.156]
[1723308455110,3.68503623,2609.4,2608.8,1.156]
[1723308455111,2.3958,2609.2,2608.8,1.156]
[1723308455281,2.3958,2609.2,2609.1,1.156]
[1723308457011,2.3958,2609.4,2609.1,1.156]
[1723308457172,2.47233481,2609.4,2609.1,1.156]
[1723308457373,2.3958,2609.4,2609.1,1.156]
[1723308457606,2.3958,2609.4,2609.1,3.07236]
[1723308457812,2.3958,2609.4,2609.1,1.91636]
[1723308458913,2.3958,2609.4,2609.0,1.91639]
[1723308459303,2.3958,2609.4,2609.1,1.91636]
[1723308459470,0.07653481,2609.6,2609.1,1.91636]
[1723308459471,0.07653481,2609.6,2609.3,1.91622]
[1723308459694,0.07653481,2609.6,2609.1,0.383275]
[1723308459695,0.07653481,2609.6,2609.1,1.9163]
[1723308459993,0.07653481,2609.6,2609.2,1.91628]
[1723308463137,2.4074,2609.7,2609.4,1.91611]
[1723308463440,2.4074,2609.9,2609.5,1.91603]
[1723308463794,2.4074,2609.9,2609.6,1.91597]
[1723308463995,2.4074,2609.9,2609.4,2.299329]
[1723308464205,2.48393481,2609.9,2609.4,3.83218]
[1723308464427,2.48393481,2609.9,2609.5,1.91607]
[1723308464846,2.4074,2609.9,2609.5,1.91607]
[1723308469839,0.07653481,2610.0,2609.6,1.91599]
[1723308470043,0.07653481,2610.1,2609.7,1.91592]
[1723308470605,0.07653481,2610.1,2609.6,2.344199]
[1723308473644,0.07653481,2610.1,2609.6,4.260139]
[1723308473841,0.07653481,2610.1,2609.6,2.344179]
[1723308475607,5.96981196,2610.2,2609.9,1.91573]
[1723308475608,2.36273481,2610.2,2609.9,1.91573]
[1723308475808,2.2862,2610.2,2609.9,1.91573]
[1723308477211,2.2862,2610.2,2609.8,1.91578]
[1723308477411,2.2862,2610.2,2609.8,2.36521969]
[1723308478393,0.07653481,2610.1,2609.6,4.260109]
[1723308478508,0.07653481,2610.1,2609.6,5.416109]
[1723308478713,0.07653481,2610.1,2609.6,3.500169]
[1723308480111,1.99216481,2610.1,2609.6,0.428239]
[1723308480324,1.99216481,2610.1,2609.6,1.916]
[1723308481911,0.07653481,2610.1,2609.6,1.91595]
[1723308482117,0.07653481,2610.1,2609.7,1.9159]
[1723308482718,2.2862,2610.2,2609.8,1.9158]
[1723308483030,2.2862,2610.2,2609.9,1.91577]
[1723308483955,2.2862,2610.2,2609.8,0.62628]
[1723308484158,0.07653481,2610.1,2609.7,1.91592]
[1723308484455,0.07653481,2610.1,2609.5,3.07203]
[1723308484664,2.4344,2610.0,2609.5,1.91603]
[1723308484821,2.4344,2610.0,2609.5,3.83205]
[1723308484822,0.07653481,2609.9,2609.5,3.83205]
[1723308485022,0.07653481,2609.9,2609.5,1.91602]
[1723308485851,0.07653481,2609.9,2609.5,3.83205]
[1723308486033,0.07653481,2609.9,2609.5,1.91602]
[1723308486650,0.07653481,2609.9,2609.5,3.83205]
[1723308486851,0.07653481,2609.9,2609.5,1.91602]
[1723308487663,0.07653481,2609.9,2609.4,1.91613]
[1723308488267,0.07653481,2609.9,2609.4,2.414959]
[1723308488450,0.07653481,2609.9,2609.5,1.91606]
[1723308489367,5.08640867,2609.9,2609.5,1.91606]
[1723308489660,0.07653481,2609.9,2609.5,1.91606]
[1723308490366,5.08638567,2609.9,2609.5,1.91606]
[1723308490669,5.08638567,2609.9,2609.3,3.07216]
[1723308490670,1.99237481,2609.9,2609.3,3.07218]
[1723308490875,7.00245529,2609.9,2609.3,3.57103]
[1723308491037,1.3262044,2609.8,2609.3,3.57103]
[1723308491366,2.3545,2609.6,2609.3,3.57103]
[1723308496446,2.2759,2609.4,2609.0,1.156]
[1723308497131,2.35243481,2609.4,2609.0,1.156]
[1723308497878,2.35243481,2609.4,2609.0,3.07242]
[1723308498180,2.2759,2609.4,2609.0,3.07242]
[1723308500276,2.2759,2609.4,2609.1,1.91636]
[1723308500776,2.2759,2609.4,2609.0,3.07241]
[1723308502469,0.07653481,2609.5,2609.2,1.91628]
[1723308502672,2.2759,2609.6,2609.4,1.91614]
[1723308503555,2.2759,2609.6,2609.4,3.0721]
[1723308504552,2.2759,2609.6,2609.4,1.156]
[1723308504962,2.2759,2609.6,2609.4,3.07209]
[1723308505652,2.2759,2609.6,2609.4,1.91609]
[1723308507158,2.35243481,2609.8,2609.4,1.91609]
[1723308507356,1.26859381,2609.7,2609.4,1.91609]
[1723308508766,2.3632,2609.6,2609.2,3.07223]
[1723308508952,1.26859381,2609.5,2609.2,3.07223]
[1723308509655,2.3632,2609.6,2609.2,3.07223]
[1723308509983,2.3632,2609.6,2609.3,0.307223]
[1723308510195,2.3632,2609.6,2609.2,3.07223]
[1723308511791,2.3632,2609.6,2609.3,1.91621]
[1723308513687,2.3632,2609.6,2609.2,3.07223]
[1723308514996,2.3632,2609.6,2609.2,4.98847]
[1723308515300,2.3632,2609.6,2609.2,3.07223]
[1723308515459,2.3632,2609.6,2609.2,4.98847]
[1723308516706,2.3632,2609.6,2609.3,1.91617]
[1723308518812,2.3632,2609.6,2609.4,1.91614]
[1723308521715,2.3632,2609.6,2609.4,3.07214]
[1723308521903,2.3632,2609.6,2609.4,3.570977]
[1723308522720,2.3632,2609.6,2609.4,3.07214]
[1723308523663,7.37340593,2609.6,2609.4,3.07214]
[1723308523858,6.04714261,2609.6,2609.4,3.07214]
[1723308524362,6.04714261,2609.6,2609.4,1.91614]
[1723308524733,6.04727427,2609.6,2609.4,1.91614]
[1723308525365,6.04727427,2609.6,2609.4,3.83224]
[1723308525536,6.04727427,2609.6,2609.4,1.9161]
[1723308525733,2.3632,2609.6,2609.5,1.91607]
[1723308526250,2.3632,2609.6,2609.4,1.9161]
[1723308526451,6.04727427,2609.6,2609.5,1.91607]
[1723308526659,7.37352849,2609.6,2609.5,1.91607]
[1723308526865,1.32625422,2609.6,2609.5,1.91607]
[1723308527061,5.01032849,2609.6,2609.4,1.9161]
[1723308527269,3.68407427,2609.6,2609.4,1.9161]
[1723308527974,3.68407427,2609.6,2609.4,3.8322]
[1723308528182,3.68407427,2609.6,2609.4,1.9161]
[1723308528757,3.68407427,2609.6,2609.5,1.91607]
[1723308529279,3.68407427,2609.8,2609.7,1.91592]
[1723308529481,2.3999,2610.2,2609.8,1.91585]
[1723308529482,3.68407427,2609.9,2609.8,1.91585]
[1723308529644,1.32607192,2609.9,2609.8,4.9877]
[1723308529851,3.68407427,2610.2,2610.0,1.9157]
[1723308530395,9.6999,2610.4,2610.1,1.91562]
[1723308530690,1.4024619,2610.3,2609.9,1.91574]
[1723308530988,0.07653481,2610.2,2609.9,1.91574]
[1723308531341,0.07653481,2610.2,2609.9,3.83146]
[1723308531541,10.66989,2610.4,2609.9,3.83146]
[1723308531739,10.66989,2610.4,2610.0,1.91569]
[1723308532276,9.6999,2610.4,2610.1,1.91561]
[1723308534354,2.362,2610.7,2610.2,1.9155]
[1723308534567,1.40238731,2610.6,2610.2,1.9155]
[1723308534780,1.99180481,2610.6,2610.1,1.91559]
[1723308534985,2.362,2610.5,2610.1,1.91559]
[1723308535292,0.07653481,2610.4,2610.1,1.91559]
[1723308535584,0.07653481,2610.4,2610.0,1.156]
[1723308535758,0.07653481,2610.4,2610.1,1.91562]
[1723308537155,0.07653481,2610.4,2610.0,1.156]
[1723308537403,0.07653481,2610.4,2610.0,3.0717]
[1723308537572,2.362,2610.3,2610.0,1.156]
[1723308537884,2.362,2610.3,2610.0,3.07167]
[1723308538082,2.362,2610.3,2610.0,1.156]
[1723308538289,2.362,2610.3,2609.9,1.91572]
[1723308538448,2.362,2610.3,2609.9,3.83145]
[1723308538793,2.362,2610.3,2609.9,1.91572]
[1723308538952,2.362,2610.3,2609.9,3.83145]
[1723308539151,2.362,2610.3,2609.9,1.91572]
[1723308541458,2.362,2610.3,2610.0,1.91568]
[1723308542420,4.71292748,2610.3,2609.7,1.91591]
[1723308542733,4.27753,2610.3,2609.7,1.91591]
[1723308543525,6.19307,2610.3,2609.7,1.91591]
[1723308544039,4.27753,2610.3,2609.7,1.91591]
[1723308544388,4.27753,2610.3,2609.7,3.83179]
[1723308545022,4.27753,2610.3,2609.7,1.91588]
[1723308545023,5.626821,2610.3,2609.7,1.91588]
[1723308546023,7.542361,2610.3,2609.7,1.91588]
[1723308546227,5.626821,2610.3,2609.7,1.91588]
[1723308547012,2.362,2610.3,2609.9,1.91573]
[1723308547221,11.57735,2610.5,2609.9,1.91573]
[1723308548225,0.07653481,2610.4,2609.9,1.91573]
[1723308548831,0.07653481,2610.4,2609.8,3.07184]
[1723308549258,1.91556,2610.2,2609.7,3.07189]
[1723308549407,0.07653481,2610.1,2609.7,3.07189]
[1723308550505,4.32785,2610.3,2609.7,3.07189]
[1723308551047,4.32784,2610.3,2609.7,1.156]
[1723308551190,1.91563,2610.1,2609.5,3.07203]
[1723308551532,1.99216481,2610.1,2609.5,3.07202]
[1723308551729,0.07653481,2610.1,2609.5,3.07202]
[1723308551908,0.07653481,2610.1,2609.7,1.156]
[1723308552106,2.4123,2610.2,2609.8,1.91582]
[1723308553936,11.65208,2610.5,2610.0,1.9157]
[1723308554134,0.07653481,2610.4,2610.0,1.9157]
[1723308560144,2.4367,2610.5,2610.0,1.9157]
[1723308560445,1.32587623,2610.4,2610.0,1.9157]
[1723308560749,2.51323481,2610.5,2610.0,2.4719912]
[1723308561057,1.32588423,2610.4,2610.0,2.4719912]
[1723308561205,2.51323481,2610.5,2610.0,2.4719912]
[1723308561405,1.32585653,2610.4,2610.1,1.91562]
[1723308561609,2.4367,2610.5,2610.1,2.47763942]
[1723308561809,1.32587963,2610.4,2610.1,2.47763942]
[1723308562048,2.4367,2610.5,2610.1,2.47763942]
[1723308563409,2.4367,2610.8,2610.5,1.91534]
[1723308563618,2.4367,2610.8,2610.5,3.570021]
[1723308563849,2.4367,2610.8,2610.5,3.07134]
[1723308564206,2.4367,2610.8,2610.3,1.91547]
[1723308564410,1.32571315,2610.7,2610.3,1.91547]
[1723308564629,2.51323481,2610.8,2610.3,1.91547]
[1723308564856,1.32573039,2610.7,2610.3,1.91547]
[1723308565059,2.51323481,2610.8,2610.3,1.91547]
[1723308565210,1.32573958,2610.7,2610.3,1.91547]
[1723308565408,0.07653481,2610.7,2610.3,1.91547]
[1723308566650,2.4367,2610.8,2610.3,3.83091]
[1723308566816,2.4367,2610.8,2610.3,1.91544]
[1723308568054,4.35182,2610.8,2610.2,1.156]
[1723308568351,1.40229313,2610.7,2610.2,1.156]
[1723308568530,0.07653481,2610.7,2610.2,1.74450994]
[1723308568854,0.07653481,2610.7,2610.2,3.66001994]
[1723308569055,0.07653481,2610.7,2610.3,1.91548]
[1723308570355,2.51323481,2610.8,2610.3,3.83092]
[1723308570555,2.4367,2610.8,2610.3,2.75433494]
[1723308572577,2.2636,2611.0,2610.5,1.91528]
[1723308572853,9.21481,2611.3,2610.8,3.07106]
[1723308572854,9.5636,2611.3,2610.8,3.07106]
[1723308573014,9.5636,2611.3,2610.8,3.65393686]
[1723308574438,11.47835,2611.3,2610.8,1.66228031]
[1723308574651,0.07653481,2611.2,2610.8,1.66228031]
[1723308575324,11.47835,2611.3,2610.8,1.66228031]
[1723308576138,9.5636,2611.3,2610.8,3.57738031]
[1723308576338,9.5636,2611.3,2610.9,0.54925203]
[1723308576516,2.2636,2611.3,2610.9,0.54925203]
[1723308578351,1.99121481,2611.4,2610.9,0.54925203]
[1723308579621,1.99121481,2611.4,2610.9,2.46429203]
[1723308579815,0.07653481,2611.4,2610.9,2.46429203]
[1723308580033,2.2636,2611.5,2610.9,2.46424203]
[1723308580449,4.17821,2611.5,2610.9,2.46424203]
[1723308580650,4.17821,2611.5,2611.0,0.61418388]